bitfinex/quotes_SOLUSD_20220212
["timestamp","ask_amount","ask_price","bid_price","bid_amount"]
[1644686904224,0.03747365,97.075,97.01,51.5314]
[1644686904427,5.152,97.074,97.01,51.5314]
[1644686904827,0.03747365,97.073,97.01,51.5314]
[1644686905025,5.152,97.072,97.01,51.5314]
[1644686905526,5.18947365,97.076,97.01,51.5314]
[1644686906729,5.18947365,97.076,97.011,5.152]
[1644686906929,5.18947365,97.076,97.02,15.4614]
[1644686907130,5.152,97.076,97.02,15.4614]
[1644686907731,6.60739542,97.076,97.02,15.4614]
[1644686908133,5.152,97.076,97.02,15.4614]
[1644686908331,6.60739542,97.076,97.012,23.4068]
[1644686908532,1.45539542,97.072,97.001,0.25]
[1644686908734,1.45539542,97.067,97.001,0.25]
[1644686908936,1.45539542,97.066,97.001,0.25]
[1644686909236,1.45539542,97.065,97.001,0.25]
[1644686909433,6.64486907,97.065,97.001,0.25]
[1644686909644,1.49286907,97.065,97.001,0.25]
[1644686909836,5.152,97.064,97.001,0.25]
[1644686910034,6.60739542,97.064,97.001,0.25]
[1644686910433,1.49286907,97.064,97.001,0.25]
[1644686910635,22.5071,97.063,97.001,0.25]
[1644686910835,5.152,97.062,97.001,0.25]
[1644686911035,5.18947365,97.062,97.001,0.25]
[1644686911638,5.18947365,97.062,96.995,24.1164]
[1644686911639,14.37947365,97.062,96.995,24.1164]
[1644686911841,1.45539542,97.057,96.98,15.4672]
[1644686912044,1.45539542,97.046,96.98,15.4672]
[1644686912239,5.18947365,97.056,96.98,15.4672]
[1644686912240,0.25,97.045,96.98,15.4672]
[1644686912440,4.32929838,97.045,96.98,15.4672]
[1644686912641,49.46615615,97.044,96.963,43.83123041]
[1644686912840,0.25,97.043,96.963,43.83123041]
[1644686913041,5.154,97.042,96.963,43.83123041]
[1644686913240,0.25,97.041,96.963,43.83123041]
[1644686913541,5.154,97.04,96.963,43.83123041]
[1644686913839,0.25,97.039,96.963,43.83123041]
[1644686914043,5.154,97.038,96.963,43.83123041]
[1644686914240,0.25,97.037,96.963,43.83123041]
[1644686914440,5.154,97.036,96.963,43.83123041]
[1644686914841,5.154,97.036,96.964,0.25]
[1644686918145,0.25,97.037,96.964,0.25]
[1644686918344,0.25,97.04,96.964,0.25]
[1644686918547,15.7222,97.04,96.964,0.25]
[1644686918847,1.45539542,97.036,96.964,0.25]
[1644686919050,6.60939542,97.035,96.964,0.25]
[1644686919247,8.03,97.035,96.96,15.4707]
[1644686919451,5.404,97.034,96.96,15.4707]
[1644686919646,1.45539542,97.033,96.96,15.4707]
[1644686919848,15.4734,97.03,96.96,15.4707]
[1644686920048,5.154,97.029,96.96,15.4707]
[1644686920249,0.25,97.028,96.96,15.4707]
[1644686920451,5.154,97.027,96.94,15.4735]
[1644686920652,5.154,97.027,96.959,0.25]
[1644686920849,0.25,97.026,96.959,0.25]
[1644686921050,5.155,97.025,96.959,0.25]
[1644686921252,0.25,97.024,96.959,0.25]
[1644686921451,5.155,97.023,96.959,0.25]
[1644686921850,0.25,97.022,96.959,0.25]
[1644686922251,5.155,97.021,96.959,0.25]
[1644686922652,5.155,97.027,96.959,0.25]
[1644686923768,0.25,97.026,96.959,0.25]
[1644686923970,5.155,97.025,96.959,0.25]
[1644686924471,0.25,97.024,96.959,0.25]
[1644686924670,5.155,97.023,96.959,0.25]
[1644686925070,0.25,97.022,96.959,0.25]
[1644686925271,5.155,97.021,96.959,0.25]
[1644686925869,0.25,97.02,96.959,0.25]
[1644686926873,0.25,97.026,96.959,0.25]
[1644686927070,5.155,97.025,96.959,0.25]
[1644686927271,0.25,97.024,96.959,0.25]
[1644686927469,5.155,97.023,96.959,0.25]
[1644686927869,0.25,97.022,96.959,0.25]
[1644686928070,5.155,97.021,96.959,0.25]
[1644686928270,0.25,97.02,96.959,0.25]
[1644686928769,5.155,97.019,96.959,0.25]
[1644686929270,0.25,97.018,96.959,0.25]
[1644686929472,5.155,97.017,96.959,0.25]
[1644686929771,0.25,97.016,96.959,0.25]
[1644686929970,40.02853186,97.014,96.959,0.25]
[1644686930173,28.1425,97.013,96.959,0.25]
[1644686930382,28.3925,97.013,96.959,0.25]
[1644686931372,23.2375,97.013,96.959,0.25]
[1644686933172,22.9875,97.013,96.959,0.25]
[1644686933375,5.155,97.022,96.96,15.4716]
[1644686933574,1.45539542,97.029,96.96,15.4716]
[1644686933773,1.45539542,97.029,96.961,24.4072]
[1644686933973,5.154,97.038,96.961,24.4072]
[1644686934174,1.45539542,97.041,96.961,24.4072]
[1644686934374,0.25,97.037,96.961,24.4072]
[1644686934577,5.154,97.036,96.961,24.4072]
[1644686934776,5.154,97.036,96.98,15.4684]
[1644686934976,5.154,97.036,96.981,40.07111094]
[1644686937580,0.25,97.037,96.981,40.07111094]
[1644686937882,5.154,97.037,96.981,40.07111094]
[1644686939184,1.45539542,97.035,96.981,40.07111094]
[1644686939983,25.83189542,97.036,96.981,40.07111094]
[1644686940387,1.45539542,97.035,96.981,40.07111094]
[1644686940586,5.154,97.034,96.981,40.07111094]
[1644686940786,1.45539542,97.035,96.981,40.07111094]
[1644686941287,1.45539542,97.031,96.981,40.07111094]
[1644686941692,5.154,97.03,96.981,40.07111094]
[1644686943391,1.45539542,97.029,96.981,40.07111094]
[1644686943592,1.45539542,97.031,96.981,40.07111094]
[1644686943791,1.45539542,97.03,96.981,40.07111094]
[1644686943992,1.45539542,97.03,96.981,39.98111094]
[1644686946193,1.45539542,97.031,96.981,39.98111094]
[1644686946393,1.45539542,97.03,96.981,39.98111094]
[1644686946996,1.45539542,97.031,96.981,39.98111094]
[1644686949496,1.45539542,97.032,96.981,39.98111094]
[1644686949718,1.45539542,97.034,96.981,39.98111094]
[1644686950119,1.45539542,97.035,96.981,39.98111094]
[1644686950817,24.3765,97.036,96.981,39.98111094]
[1644686950818,23.8765,97.036,96.981,39.98111094]
[1644686954422,5.154,97.035,96.981,39.98111094]
[1644686955623,5.154,97.035,96.99,15.4669]
[1644686955824,23.8765,97.036,96.99,15.4669]
[1644686962930,6.60739542,97.046,96.99,15.4669]
[1644686963135,1.45539542,97.046,96.991,5.152]
[1644686963436,1.45539542,97.047,97.0,15.4627]
[1644686963832,1.45539542,97.048,97.001,5.152]
[1644686964031,1.45539542,97.048,97.002,45.84198802]
[1644686964237,5.152,97.047,97.002,45.84198802]
[1644686964432,24.6311,97.054,97.003,5.152]
[1644686964932,24.6311,97.054,97.01,15.4626]
[1644686967138,1.45539542,97.061,97.01,15.4626]
[1644686967340,1.45539542,97.061,97.02,15.4618]
[1644686967538,1.45539542,97.061,97.021,43.17808001]
[1644686967738,5.152,97.06,97.021,43.17808001]
[1644686968138,1.45539542,97.063,97.021,43.17808001]
[1644686968361,5.152,97.062,97.021,43.17808001]
[1644686969340,6.60739542,97.062,97.021,43.17808001]
[1644686969541,1.45539542,97.062,97.021,43.17808001]
[1644686969740,5.152,97.061,97.021,43.17808001]
[1644686970742,1.45539542,97.064,97.021,43.17808001]
[1644686971142,1.45539542,97.065,97.021,43.17808001]
[1644686971545,1.45539542,97.062,97.021,43.17808001]
[1644686971746,1.45539542,97.061,97.021,43.17808001]
[1644686972144,1.45539542,97.062,97.021,43.17808001]
[1644686972345,0.95539542,97.062,97.021,43.17808001]
[1644686972547,5.152,97.061,97.021,43.17808001]
[1644686972847,5.152,97.07,97.021,43.17808001]
[1644686973045,5.152,97.071,97.021,43.17808001]
[1644686973646,0.25,97.07,97.021,43.17808001]
[1644686973847,5.152,97.069,97.021,43.17808001]
[1644686975049,0.25,97.07,97.021,43.17808001]
[1644686975249,0.25,97.071,97.021,43.17808001]
[1644686975869,23.4423,97.072,97.021,43.17808001]
[1644686976470,0.25,97.071,97.021,43.17808001]
[1644686976870,23.4423,97.072,97.021,43.17808001]
[1644686979573,0.25,97.071,97.021,43.17808001]
[1644686979773,5.152,97.07,97.021,43.17808001]
[1644686980576,23.4423,97.072,97.021,43.17808001]
[1644686983785,23.4423,97.072,97.03,15.4604]
[1644686988191,48.08761503,97.071,97.03,15.4604]
[1644686988393,23.4423,97.072,97.03,15.4604]
[1644686992994,5.151,97.091,97.03,15.4604]
[1644686992995,0.03747365,97.091,97.031,2.62390296]
[1644686993197,0.03747365,97.083,97.031,7.77490296]
[1644686993396,2.8962989,97.097,97.04,15.4533]
[1644686993397,0.03747365,97.091,97.04,15.4533]
[1644686993596,0.03747365,97.096,97.041,44.33282759]
[1644686993796,4.31395262,97.111,97.043,103.1]
[1644686993995,0.03747365,97.11,97.044,5.15]
[1644686994195,0.03747365,97.111,97.044,5.15]
[1644686994397,0.03747365,97.109,97.045,2.62390296]
[1644686994622,23.0727,97.112,97.05,15.4532]
[1644686994623,0.03747365,97.11,97.05,15.4532]
[1644686994795,0.03747365,97.108,97.051,5.15]
[1644686994995,0.03747365,97.109,97.051,7.77390296]
[1644686995196,23.11017365,97.112,97.052,2.62390296]
[1644686995395,38.91002347,97.111,97.052,2.62390296]
[1644686995596,44.06002347,97.111,97.053,22.7307]
[1644686995797,44.06002347,97.111,97.061,44.74591277]
[1644686995997,44.06002347,97.111,97.051,5.15]
[1644686996396,4.52072109,97.11,97.051,5.15]
[1644686996596,5.15,97.109,97.051,5.15]
[1644686996796,9.42072109,97.109,97.051,5.15]
[1644686997000,4.27072109,97.108,97.052,39.13228166]
[1644686997197,5.15,97.107,97.052,39.13228166]
[1644686997599,5.15,97.109,97.052,39.13228166]
[1644686998200,4.52017931,97.108,97.05,15.4574]
[1644686998402,9.42017931,97.107,97.053,0.25]
[1644686998603,4.27017931,97.106,97.053,0.25]
[1644686998799,5.15,97.105,97.053,0.25]
[1644686999200,4.52017931,97.104,97.053,0.25]
[1644686999400,4.27017931,97.104,97.061,103.1]
[1644686999604,0.03747365,97.108,97.07,14.81]
[1644686999800,0.03747365,97.133,97.072,103.1]
[1644686999999,0.03747365,97.148,97.072,103.1]
[1644687000201,0.03747365,97.132,97.073,34.27063654]
[1644687000402,0.03747365,97.147,97.073,36.8945395]
[1644687000600,0.03747365,97.132,97.074,2.62390296]
[1644687000801,0.03747365,97.146,97.08,15.449]
[1644687001100,5.148,97.145,97.081,2.62390296]
[1644687001307,0.03747365,97.145,97.082,24.6952]
[1644687001505,5.148,97.144,97.082,24.6952]
[1644687001800,0.03747365,97.143,97.083,2.62390296]
[1644687002002,5.148,97.143,97.083,2.62390296]
[1644687002204,0.03747365,97.143,97.083,2.62390296]
[1644687002502,5.148,97.142,97.083,2.62390296]
[1644687002700,5.18547365,97.148,97.083,2.62390296]
[1644687002901,0.03747365,97.148,97.09,15.4499]
[1644687003101,5.148,97.147,97.09,15.4499]
[1644687003301,5.148,97.148,97.09,15.4499]
[1644687003503,5.18547365,97.149,97.09,15.4499]
[1644687003702,5.148,97.149,97.09,15.4499]
[1644687005303,0.25,97.148,97.083,2.62390296]
[1644687005505,5.148,97.147,97.073,5.148]
[1644687005707,0.03747365,97.146,97.071,2.62390296]
[1644687005904,0.03747365,97.146,97.072,23.6624]
[1644687006105,5.148,97.145,97.072,23.6624]
[1644687006305,0.03747365,97.145,97.073,43.0799128]
[1644687006603,5.148,97.144,97.073,43.0799128]
[1644687006805,0.03747365,97.144,97.073,43.0799128]
[1644687007005,5.18547365,97.143,97.073,43.0799128]
[1644687007204,0.03747365,97.142,97.073,43.0799128]
[1644687007408,5.148,97.141,97.073,43.0799128]
[1644687007804,0.03747365,97.14,97.073,43.0799128]
[1644687008005,0.03747365,97.142,97.073,43.0799128]
[1644687008205,0.03747365,97.139,97.073,43.0799128]
[1644687008504,0.03747365,97.141,97.073,43.0799128]
[1644687008706,5.18547365,97.14,97.073,43.0799128]
[1644687008907,24.9265,97.139,97.073,43.0799128]
[1644687009205,5.399,97.138,97.073,43.0799128]
[1644687009404,5.43647365,97.138,97.07,15.4533]
[1644687009630,5.03647365,97.138,97.07,15.4533]
[1644687010406,5.03647365,97.138,97.071,43.5492624]
[1644687011506,5.03647365,97.138,97.072,23.441]
[1644687012106,4.78647365,97.138,97.072,23.441]
[1644687012709,24.9265,97.139,97.08,15.4525]
[1644687012909,24.5265,97.139,97.08,15.4525]
[1644687020324,47.23522853,97.154,97.08,15.4525]
[1644687021626,47.23522853,97.154,97.081,5.148]
[1644687021828,0.25,97.153,97.091,44.9832725]
[1644687022030,28.7191,97.153,97.091,44.9832725]
[1644687022329,4.21528513,97.152,97.091,44.9832725]
[1644687022528,5.148,97.151,97.091,44.9832725]
[1644687022928,5.148,97.152,97.091,44.9832725]
[1644687023228,5.148,97.152,97.092,0.25]
[1644687023429,4.21484286,97.151,97.092,0.25]
[1644687023628,5.148,97.15,97.072,23.441]
[1644687023830,4.21484286,97.149,97.072,23.441]
[1644687024031,2.8962989,97.147,97.058,24.4993]
[1644687024228,5.149,97.146,97.059,5.149]
[1644687024427,15.4566,97.14,97.059,5.149]
[1644687024642,44.32982173,97.139,97.059,5.149]
[1644687024842,23.2453,97.138,97.059,5.149]
[1644687025042,4.25160492,97.137,97.059,5.149]
[1644687025249,5.43576206,97.136,97.059,5.149]
[1644687025442,4.21484286,97.135,97.059,5.149]
[1644687025644,0.03676206,97.134,97.05,15.4561]
[1644687025843,5.43576206,97.134,97.05,15.4561]
[1644687026042,0.03676206,97.133,97.05,15.4561]
[1644687026243,5.149,97.132,97.051,45.53761044]
[1644687026444,4.25160492,97.131,97.051,45.53761044]
[1644687026647,0.03676206,97.13,97.06,15.4556]
[1644687027046,5.18576206,97.132,97.06,15.4556]
[1644687027246,0.03676206,97.129,97.061,0.25]
[1644687027444,0.03676206,97.131,97.061,0.25]
[1644687027645,0.03676206,97.128,97.061,0.25]
[1644687027850,0.03676206,97.13,97.061,0.25]
[1644687028049,0.03676206,97.127,97.061,0.25]
[1644687028248,0.03676206,97.129,97.071,47.22608843]
[1644687028448,0.03676206,97.126,97.071,47.22608843]
[1644687028650,0.03676206,97.134,97.072,23.0773]
[1644687028849,0.03676206,97.132,97.072,23.0773]
[1644687029047,0.03676206,97.136,97.072,23.0773]
[1644687029248,0.03676206,97.132,97.072,23.0773]
[1644687029549,0.03676206,97.135,97.08,15.4521]
[1644687029748,0.03676206,97.132,97.08,15.4521]
[1644687029949,5.149,97.131,97.08,15.4521]
[1644687030149,5.148,97.134,97.08,15.4521]
[1644687030353,23.28206206,97.138,97.08,15.4521]
[1644687030548,0.03676206,97.137,97.08,15.4521]
[1644687030750,23.2453,97.138,97.08,15.4521]
[1644687030949,23.28206206,97.138,97.08,15.4521]
[1644687031150,0.03676206,97.146,97.08,15.4521]
[1644687031355,0.03676206,97.148,97.081,2.62390296]
[1644687031549,0.03676206,97.145,97.1,15.4476]
[1644687031748,0.03676206,97.147,97.101,24.9524]
[1644687031947,0.03676206,97.167,97.101,27.57630296]
[1644687032147,0.03676206,97.167,97.102,2.62390296]
[1644687032348,0.03676206,97.166,97.103,45.53761044]
[1644687032550,4.25568959,97.176,97.103,45.53761044]
[1644687032749,0.03676206,97.165,97.104,2.62390296]
[1644687033051,0.03676206,97.175,97.11,15.4468]
[1644687033250,0.03676206,97.165,97.11,15.4468]
[1644687033452,0.03676206,97.174,97.11,15.4468]
[1644687033651,4.25568959,97.176,97.11,15.4468]
[1644687033853,0.03676206,97.173,97.11,15.4468]
[1644687034052,0.03676206,97.175,97.11,15.4468]
[1644687034254,5.18376206,97.172,97.11,15.4468]
[1644687034451,4.21892753,97.171,97.11,15.4468]
[1644687034653,9.65268959,97.171,97.09,15.4497]
[1644687034854,2.8962989,97.146,97.072,23.5724]
[1644687035051,2.8962989,97.14,97.072,23.5724]
[1644687035253,4.21892753,97.169,97.072,23.5724]
[1644687035254,8.0452989,97.139,97.072,23.5724]
[1644687035451,51.73539226,97.138,97.073,36.99727306]
[1644687035656,4.25568959,97.137,97.073,36.99727306]
[1644687035856,5.18576206,97.136,97.073,36.99727306]
[1644687036056,24.5124,97.135,97.073,36.99727306]
[1644687036259,5.18576206,97.134,97.074,0.25]
[1644687036455,9.36792753,97.134,97.074,0.25]
[1644687036657,4.21892753,97.133,97.074,0.25]
[1644687036857,5.149,97.132,97.074,0.25]
[1644687037160,0.03676206,97.133,97.074,0.25]
[1644687037357,0.03676206,97.134,97.074,0.25]
[1644687037557,4.21877373,97.134,97.074,0.25]
[1644687037759,4.25553579,97.134,97.074,0.25]
[1644687038159,0.03676206,97.134,97.074,0.25]
[1644687038358,24.54916206,97.135,97.074,0.25]
[1644687038558,5.18576206,97.134,97.074,0.25]
[1644687038758,5.149,97.134,97.074,0.25]
[1644687038959,5.18576206,97.134,97.074,0.25]
[1644687040860,0.03676206,97.134,97.074,0.25]
[1644687041062,24.54916206,97.135,97.074,0.25]
[1644687041362,0.03676206,97.134,97.074,2.87390296]
[1644687041569,23.5124,97.135,97.074,2.87390296]
[1644687041570,0.03676206,97.135,97.074,2.87390296]
[1644687041763,0.03676206,97.134,97.074,2.87390296]
[1644687041965,0.03676206,97.135,97.074,2.87390296]
[1644687042162,0.03676206,97.134,97.074,2.87390296]
[1644687042365,44.16365766,97.161,97.074,2.87390296]
[1644687042565,0.03676206,97.134,97.08,15.4496]
[1644687042763,0.03676206,97.16,97.08,133.3596]
[1644687042964,9.40812365,97.168,97.081,2.62390296]
[1644687043165,0.03676206,97.159,97.081,2.62390296]
[1644687043363,5.148,97.166,97.081,2.62390296]
[1644687043565,43.65834198,97.165,97.081,2.62390296]
[1644687043762,0.03676206,97.164,97.081,2.62390296]
[1644687043964,5.18476206,97.164,97.081,2.62390296]
[1644687044173,0.03676206,97.163,97.081,2.62390296]
[1644687044364,5.148,97.162,97.081,2.62390296]
[1644687044564,0.03676206,97.168,97.09,15.4473]
[1644687044766,0.03676206,97.161,97.1,14.81]
[1644687044966,0.03676206,97.167,97.1,14.81]
[1644687045165,0.03676206,97.161,97.101,50.24014182]
[1644687045365,0.03676206,97.166,97.101,50.24014182]
[1644687045566,0.03676206,97.161,97.102,27.07600296]
[1644687045768,0.03676206,97.165,97.11,15.4436]
[1644687045965,4.26120477,97.18,97.11,30.2536]
[1644687046167,0.03676206,97.179,97.11,30.2536]
[1644687047069,5.146,97.178,97.11,30.2536]
[1644687047367,0.03676206,97.177,97.11,30.2536]
[1644687047568,5.147,97.176,97.11,30.2536]
[1644687047769,41.13245344,97.175,97.11,30.2536]
[1644687047970,46.3162155,97.175,97.11,30.2536]
[1644687048376,5.147,97.174,97.11,30.2536]
[1644687048570,0.03676206,97.173,97.111,7.77090296]
[1644687048769,0.03676206,97.174,97.111,7.77090296]
[1644687048970,0.03676206,97.172,97.11,30.2536]
[1644687049168,5.18376206,97.173,97.11,14.81]
[1644687049369,23.8852,97.181,97.111,0.25]
[1644687049370,0.03676206,97.171,97.111,0.25]
[1644687049570,40.3245409,97.172,97.111,0.25]
[1644687049770,4.25713761,97.171,97.111,0.25]
[1644687049970,5.147,97.17,97.111,0.25]
[1644687050170,30.67587445,97.169,97.111,0.25]
[1644687050473,12.26367445,97.168,97.082,22.8411]
[1644687050670,2.8962989,97.167,97.082,22.8411]
[1644687050878,2.8962989,97.163,97.083,43.69175935]
[1644687051069,5.148,97.162,97.06,15.452]
[1644687051272,2.8962989,97.158,97.06,15.452]
[1644687051670,103.1,97.156,97.06,15.452]
[1644687051872,28.45327555,97.155,97.061,5.148]
[1644687052074,37.27631646,97.154,97.062,46.92568202]
[1644687052273,9.36837555,97.153,97.063,5.148]
[1644687052474,15.4542,97.15,97.063,5.398]
[1644687052675,5.18475869,97.149,97.063,5.398]
[1644687052875,0.03675869,97.148,97.063,5.398]
[1644687053077,5.149,97.147,97.063,5.148]
[1644687053276,4.22037555,97.146,97.062,46.92568202]
[1644687053483,5.149,97.145,97.062,46.92568202]
[1644687053676,4.22037555,97.144,97.062,46.92568202]
[1644687053875,5.18575869,97.143,97.062,46.92568202]
[1644687054081,4.25713424,97.142,97.062,46.92568202]
[1644687054279,29.5983,97.141,97.063,0.25]
[1644687054480,0.03675869,97.14,97.063,0.25]
[1644687054679,5.149,97.139,97.063,0.25]
[1644687054879,42.90544641,97.138,97.063,0.25]
[1644687055082,5.18575869,97.137,97.063,0.25]
[1644687055280,0.03675869,97.136,97.063,0.25]
[1644687055480,5.149,97.135,97.063,0.25]
[1644687055681,0.03675869,97.134,97.063,0.25]
[1644687056180,5.149,97.133,97.063,0.25]
[1644687056381,0.03675869,97.133,97.063,0.25]
[1644687056581,5.149,97.132,97.063,0.25]
[1644687056781,0.03675869,97.135,97.063,0.25]
[1644687056982,0.03675869,97.131,97.063,0.25]
[1644687057188,0.03675869,97.134,97.063,0.25]
[1644687057382,0.03675869,97.13,97.063,0.25]
[1644687057582,5.149,97.129,97.063,0.25]
[1644687057782,0.03675869,97.129,97.063,0.25]
[1644687057986,5.18575869,97.128,97.063,0.25]
[1644687058184,5.43575869,97.131,97.063,0.25]
[1644687058410,0.03675869,97.127,97.063,0.25]
[1644687058611,42.86868772,97.138,97.063,0.25]
[1644687058612,0.03675869,97.13,97.063,0.25]
[1644687058810,0.03675869,97.126,97.063,0.25]
[1644687059008,5.149,97.125,97.063,0.25]
[1644687059212,0.03675869,97.126,97.063,0.25]
[1644687059407,0.03675869,97.125,97.063,0.25]
[1644687059606,0.03675869,97.126,97.063,0.25]
[1644687059808,5.149,97.127,97.063,0.25]
[1644687060109,0.03675869,97.126,97.063,0.25]
[1644687060309,5.149,97.125,97.063,0.25]
[1644687060509,0.03675869,97.126,97.063,0.25]
[1644687060708,0.03675869,97.125,97.063,0.25]
[1644687060913,0.03675869,97.134,97.063,0.25]
[1644687061114,5.149,97.133,97.063,0.25]
[1644687061315,5.18575869,97.136,97.063,0.25]
[1644687061517,0.03675869,97.132,97.063,0.25]
[1644687061812,5.18575869,97.131,97.063,0.25]
[1644687062012,5.43575869,97.136,97.063,0.25]
[1644687062214,0.25,97.135,97.063,0.25]
[1644687062415,5.149,97.134,97.063,0.25]
[1644687062714,0.28675869,97.133,97.063,0.25]
[1644687062914,5.149,97.132,97.063,0.25]
[1644687063115,0.03675869,97.131,97.063,0.25]
[1644687063427,0.28675869,97.131,97.063,0.25]
[1644687063618,0.25,97.131,97.063,0.25]
[1644687063816,5.18575869,97.13,97.063,0.25]
[1644687064516,22.7263,97.129,97.063,0.25]
[1644687064716,5.18575869,97.128,97.063,0.25]
[1644687065016,0.03675869,97.127,97.063,0.25]
[1644687065216,5.149,97.126,97.063,0.25]
[1644687065419,0.03675869,97.128,97.063,0.25]
[1644687065617,0.03675869,97.126,97.063,0.25]
[1644687065818,0.03675869,97.128,97.063,0.25]
[1644687066018,0.03675869,97.126,97.063,0.25]
[1644687066221,0.03675869,97.128,97.063,0.25]
[1644687066419,0.03675869,97.126,97.063,0.25]
[1644687066618,0.03675869,97.128,97.063,0.25]
[1644687068423,0.03675869,97.128,97.07,15.4542]
[1644687068624,22.7263,97.129,97.07,15.4542]
[1644687070227,5.18575869,97.137,97.07,15.4542]
[1644687070428,0.03675869,97.131,97.071,2.62390296]
[1644687070628,0.03675869,97.136,97.08,15.4512]
[1644687070828,0.03675869,97.15,97.081,23.3768]
[1644687071025,0.03675869,97.15,97.081,26.00070296]
[1644687071226,0.03675869,97.15,97.082,42.4740434]
[1644687071431,5.148,97.149,97.082,42.4740434]
[1644687071629,0.03675869,97.148,97.082,42.4740434]
[1644687072027,5.148,97.147,97.082,42.4740434]
[1644687072227,0.03675869,97.147,97.082,42.4740434]
[1644687072427,23.8625,97.152,97.082,42.4740434]
[1644687072428,5.18475869,97.146,97.082,42.4740434]
[1644687072628,0.03675869,97.148,97.09,15.4507]
[1644687072831,0.03675869,97.145,97.09,15.4507]
[1644687073029,23.8625,97.152,97.09,15.4507]
[1644687073030,0.03675869,97.151,97.09,15.4507]
[1644687073229,23.89925869,97.152,97.09,15.4507]
[1644687073430,0.03675869,97.151,97.09,15.4507]
[1644687073633,23.89925869,97.152,97.09,15.4507]
[1644687073832,0.03675869,97.151,97.091,5.148]
[1644687074034,23.89925869,97.152,97.091,5.148]
[1644687074232,23.8625,97.152,97.091,5.148]
[1644687076335,0.03675869,97.153,97.091,5.148]
[1644687076538,8.0442989,97.164,97.1,15.4488]
[1644687076736,0.03675869,97.153,97.1,15.4488]
[1644687076936,29.5661,97.181,97.1,15.4488]
[1644687076937,0.03675869,97.163,97.147,6517.109467]
[1644687077172,9.36789366,97.173,97.147,6517.109467]
[1644687077355,4.22189366,97.173,97.148,17.7051617]
[1644687077555,24.5189,97.189,97.148,17.7051617]
[1644687077556,5.146,97.172,97.148,17.7051617]
[1644687077758,4.47189366,97.171,97.148,17.7051617]
[1644687077958,4.22189366,97.17,97.148,17.7051617]
[1644687078358,0.25,97.169,97.148,17.7051617]
[1644687078560,4.22189366,97.168,97.148,17.7051617]
[1644687079566,2.90660257,97.175,97.148,17.7051617]
[1644687079769,2.90660257,97.186,97.148,17.7051617]
[1644687079963,2.90660257,97.183,97.148,17.7051617]
[1644687080268,24.5189,97.189,97.148,17.7051617]
[1644687080269,2.90660257,97.18,97.148,17.7051617]
[1644687080464,4.18139765,97.181,97.147,6517.109467]
[1644687080663,5.144,97.179,97.147,6517.109467]
[1644687080865,4.18139765,97.178,97.147,6517.109467]
[1644687081064,7.01755637,97.178,97.147,6517.109467]
[1644687081263,4.43077012,97.177,97.147,6517.109467]
[1644687081465,4.18077012,97.176,97.147,6517.109467]
[1644687081767,0.25,97.175,97.148,37.80773817]
[1644687081964,4.18077012,97.174,97.148,37.80773817]
[1644687082365,2.90660257,97.182,97.148,37.80773817]
[1644687082575,5.144,97.181,97.148,37.80773817]
[1644687082766,4.18077012,97.18,97.147,6517.109467]
[1644687082967,5.144,97.18,97.147,6517.109467]
[1644687083168,4.18077012,97.179,97.147,6517.109467]
[1644687083569,5.144,97.178,97.147,6517.109467]
[1644687083768,4.18077012,97.177,97.147,6517.109467]
[1644687083971,4.18077012,97.177,97.148,37.72447474]
[1644687084171,5.146,97.176,97.148,37.72447474]
[1644687084373,4.18077012,97.176,97.148,37.72447474]
[1644687084570,4.18077012,97.18,97.148,37.72447474]
[1644687084770,2.90660257,97.186,97.148,37.72447474]
[1644687084971,4.11793294,97.187,97.148,37.72447474]
[1644687085173,0.25,97.185,97.148,37.72447474]
[1644687085373,4.11793294,97.184,97.148,37.72447474]
[1644687085574,4.11793294,97.187,97.148,37.72447474]